bitfinex-derivatives/quotes_BNBF0:USTF0_20260110
["timestamp","ask_amount","ask_price","bid_price","bid_amount"]
[1768084303748,0.19230876,905.67,904.01,0.68702795]
[1768084304043,0.19230876,905.67,904.02,0.68702795]
[1768084304244,0.19230876,905.67,904.03,0.68702795]
[1768084304444,0.19230876,905.67,904.04,0.68702795]
[1768084304646,0.19230876,905.67,904.05,0.68702795]
[1768084304847,0.19230876,905.67,904.06,0.68702795]
[1768084305047,0.19230876,905.67,904.07,0.68702795]
[1768084305344,0.19230876,905.67,904.08,0.68702795]
[1768084305648,0.19230876,905.67,904.09,0.68702795]
[1768084305843,0.19230876,905.67,904.1,0.68702795]
[1768084306044,0.19230876,905.67,903.87,3.126]
[1768084306045,0.19230876,905.67,904.11,0.68702795]
[1768084306348,0.19230876,905.67,904.12,0.68702795]
[1768084306644,0.19230876,905.67,904.13,0.68702795]
[1768084306847,0.19230876,905.67,904.14,0.68702795]
[1768084307043,0.19230876,905.67,904.15,0.68702795]
[1768084307244,0.19230876,905.67,904.16,0.68702795]
[1768084307446,0.19230876,905.67,904.17,0.68702795]
[1768084307644,0.19230876,905.67,904.18,0.68702795]
[1768084307849,0.19230876,905.67,904.19,0.68702795]
[1768084308045,0.19230876,905.67,904.2,0.68702795]
[1768084308248,0.19230876,905.67,904.21,0.68702795]
[1768084308445,0.19230876,905.67,904.22,0.68702795]
[1768084308646,0.19230876,905.67,904.23,0.68702795]
[1768084308845,0.19230876,905.67,904.24,0.68702795]
[1768084309147,0.19230876,905.67,904.25,0.68702795]
[1768084309350,0.19230876,905.67,904.26,0.68702795]
[1768084309650,0.19230876,905.67,904.27,0.68702795]
[1768084309852,0.19230876,905.67,904.28,0.68702795]
[1768084310051,0.19230876,905.67,904.29,0.68702795]
[1768084310250,0.19230876,905.67,904.3,0.68702795]
[1768084310551,0.19230876,905.67,904.31,0.68702795]
[1768084310849,0.19230876,905.67,904.32,0.68702795]
[1768084311053,0.19230876,905.67,904.33,0.68702795]
[1768084311352,0.19230876,905.67,904.34,0.68702795]
[1768084311551,0.19230876,905.67,904.35,0.68702795]
[1768084311751,0.19230876,905.67,904.36,0.68702795]
[1768084311950,0.19230876,905.67,904.37,0.68702795]
[1768084312150,0.19230876,905.67,904.38,0.68702795]
[1768084312348,0.19230876,905.67,904.08,0.83042505]
[1768084312652,0.19230876,905.67,904.1,0.83042505]
[1768084312850,0.19230876,905.67,904.11,0.68918555]
[1768084313152,0.19230876,905.67,904.12,0.68918555]
[1768084313352,0.19230876,905.67,904.13,0.68918555]
[1768084313546,0.19230876,905.67,904.14,0.68918555]
[1768084313751,0.19230876,905.67,904.15,0.68918555]
[1768084314050,0.19230876,905.67,904.16,0.68918555]
[1768084314248,0.19230876,905.67,904.17,0.68918555]
[1768084314448,0.19230876,905.67,904.18,0.68918555]
[1768084314652,0.19230876,905.67,904.19,0.68918555]
[1768084314848,0.19230876,905.67,904.2,0.68918555]
[1768084315149,0.19230876,905.67,904.21,0.68918555]
[1768084315349,0.19230876,905.67,904.22,0.68918555]
[1768084315551,0.19230876,905.67,904.23,0.68918555]
[1768084315848,0.19230876,905.67,904.24,0.68918555]
[1768084316051,0.19230876,905.67,904.25,0.68918555]
[1768084316251,0.19230876,905.67,904.26,0.68918555]
[1768084316454,0.19230876,905.67,904.27,0.68918555]
[1768084316657,0.19230876,905.67,904.28,0.68918555]
[1768084316856,0.19230876,905.67,904.29,0.68918555]
[1768084317059,0.19230876,905.67,904.3,0.68918555]
[1768084317261,0.19230876,905.67,904.31,0.68918555]
[1768084317557,0.19230876,905.67,904.32,0.68918555]
[1768084317758,0.19230876,905.67,904.33,0.68918555]
[1768084317963,0.19230876,905.67,904.34,0.68918555]
[1768084318158,0.19230876,905.67,904.06,0.83042505]
[1768084318463,0.19230876,905.67,904.07,0.68864735]
[1768084318763,0.19230876,905.67,904.08,0.68864735]
[1768084318961,0.19230876,905.67,904.09,0.68864735]
[1768084319158,0.19230876,905.67,904.1,0.68864735]
[1768084319360,0.19230876,905.67,904.11,0.68864735]
[1768084319561,0.19230876,905.67,904.12,0.68864735]
[1768084319862,0.19230876,905.67,904.13,0.68864735]
[1768084320158,0.19230876,905.67,904.14,0.68864735]
[1768084320362,0.19230876,905.67,904.15,0.68864735]
[1768084320562,0.19230876,905.67,904.16,0.68864735]
[1768084320759,0.19230876,905.67,904.17,0.68864735]
[1768084320964,0.19230876,905.67,904.18,0.68864735]
[1768084321164,0.19230876,905.67,904.19,0.68864735]
[1768084321364,0.19230876,905.67,904.2,0.68864735]
[1768084321562,0.19230876,905.67,904.21,0.68864735]
[1768084321861,0.19230876,905.67,904.22,0.68864735]
[1768084322058,0.19230876,905.67,904.23,0.68864735]
[1768084322260,0.19230876,905.67,904.24,0.68864735]
[1768084322464,0.19230876,905.67,904.25,0.68864735]
[1768084322661,0.19230876,905.67,904.26,0.68864735]
[1768084322862,0.19230876,905.67,904.27,0.68864735]
[1768084323063,0.19230876,905.67,904.28,0.68864735]
[1768084323361,0.19230876,905.67,904.29,0.68864735]
[1768084323662,0.19230876,905.67,904.3,0.68864735]
[1768084323860,0.19230876,905.67,904.31,0.68864735]
[1768084324061,0.19230876,905.67,904.32,0.68864735]
[1768084324261,0.19230876,905.67,904.33,0.68864735]
[1768084324466,0.19230876,905.67,904.34,0.68864735]
[1768084324666,0.19230876,905.67,904.35,0.68864735]
[1768084324862,0.19230876,905.67,904.36,0.68864735]
[1768084325065,0.19230876,905.67,904.37,0.68864735]
[1768084325361,0.19230876,905.67,904.38,0.68864735]
[1768084325560,0.19230876,905.67,904.39,0.68864735]
[1768084325766,0.19230876,905.67,904.4,0.68864735]
[1768084326061,0.19230876,905.67,904.41,0.68864735]
[1768084326262,0.19230876,905.67,904.42,0.68864735]
[1768084326463,0.19230876,905.67,904.43,0.68864735]
[1768084326764,0.19230876,905.67,904.44,0.68864735]
[1768084326966,0.19230876,905.67,904.45,0.68864735]
[1768084327267,0.19230876,905.67,904.46,0.68864735]
[1768084327463,0.19230876,905.67,904.47,0.68864735]
[1768084327765,0.19230876,905.67,904.48,0.68864735]
[1768084327963,0.19230876,905.67,904.49,0.68864735]
[1768084328163,0.19230876,905.67,904.5,0.68864735]
[1768084328362,0.19230876,905.67,904.51,0.68864735]
[1768084328567,0.19230876,905.67,904.52,0.68864735]
[1768084328762,0.19230876,905.67,904.53,0.68864735]
[1768084329063,0.19230876,905.67,904.54,0.68864735]
[1768084329364,0.19230876,905.67,904.55,0.68864735]
[1768084329567,0.19230876,905.67,904.56,0.68864735]
[1768084329768,0.19230876,905.67,904.57,0.68864735]
[1768084330064,0.19230876,905.67,904.58,0.68864735]
[1768084330265,0.19230876,905.67,904.59,0.68864735]
[1768084330565,0.19230876,905.67,904.52,7.25161732]
[1768084330768,0.19230876,905.67,904.53,0.68815631]
[1768084330965,0.19230876,905.67,904.54,0.68815631]
[1768084331269,0.19230876,905.67,904.55,0.68815631]
[1768084331465,0.19230876,905.67,904.56,0.68815631]
[1768084331668,0.19230876,905.67,904.57,0.68815631]
[1768084331868,0.19230876,905.67,904.58,0.68815631]
[1768084332070,0.19230876,905.67,904.59,0.68815631]
[1768084332267,0.19230876,905.67,904.52,7.25161732]
[1768084332468,0.19230876,905.67,904.53,0.68793647]
[1768084332671,0.19230876,905.67,904.54,0.68793647]
[1768084332871,0.19230876,905.67,904.31,2.938]
[1768084333072,0.19230876,905.67,904.32,0.68803778]
[1768084333274,0.19230876,905.67,904.33,0.68803778]
[1768084333489,0.19230876,905.67,904.34,0.68803778]
[1768084333768,0.19230876,905.67,904.35,0.68803778]
[1768084333967,0.19230876,905.67,904.36,0.68803778]
[1768084334273,0.19230876,905.67,904.37,0.68803778]
[1768084334468,0.19230876,905.67,904.38,0.68803778]
[1768084334667,0.19230876,905.67,904.39,0.68803778]
[1768084334873,0.19230876,905.67,904.4,0.68803778]
[1768084335073,0.19230876,905.67,904.41,0.68803778]
[1768084335372,0.19230876,905.67,904.31,2.938]
[1768084335570,0.19230876,905.67,904.32,0.68814195]
[1768084335871,0.19230876,905.67,904.33,0.68814195]
[1768084336069,0.19230876,905.67,904.34,0.68814195]
[1768084336272,0.19230876,905.67,904.35,0.68814195]
[1768084336471,0.19230876,905.67,904.36,0.68814195]
[1768084336669,0.19230876,905.67,904.37,0.68814195]
[1768084336872,0.19230876,905.67,904.38,0.68814195]
[1768084337170,0.19230876,905.67,904.39,0.68814195]
[1768084337368,0.19230876,905.67,904.4,0.68814195]
[1768084337570,0.19230876,905.67,904.41,0.68814195]
[1768084337768,0.19230876,905.67,904.42,0.68814195]
[1768084337973,0.19230876,905.67,904.43,0.68814195]
[1768084338272,0.19230876,905.67,904.31,2.938]
[1768084338472,0.19230876,905.67,904.32,0.68829309]
[1768084338669,0.19230876,905.67,904.33,0.68829309]
[1768084338874,0.19230876,905.67,904.34,0.68829309]
[1768084339174,0.19230876,905.67,904.35,0.68829309]
[1768084339371,0.19230876,905.67,904.36,0.68829309]
[1768084339570,0.19230876,905.67,904.37,0.68829309]
[1768084339771,0.19230876,905.67,904.38,0.68829309]
[1768084339970,0.19230876,905.67,904.39,0.68829309]
[1768084340170,0.19230876,905.67,904.4,0.68829309]
[1768084340372,0.19230876,905.67,904.41,0.68829309]
[1768084340575,0.19230876,905.67,904.42,0.68829309]
[1768084340776,0.19230876,905.67,904.43,0.68829309]
[1768084340976,0.19230876,905.67,904.44,0.68829309]
[1768084341176,0.19230876,905.67,904.45,0.68848807]
[1768084341476,0.19230876,905.67,904.31,2.938]
[1768084341676,0.19230876,905.67,904.32,0.68848807]
[1768084341876,0.19230876,905.67,904.33,0.68848807]
[1768084342173,0.19230876,905.67,904.34,0.68848807]
[1768084342377,0.19230876,905.67,904.35,0.68848807]
[1768084342676,0.19230876,905.67,904.36,0.68848807]
[1768084342873,0.19230876,905.67,904.31,2.938]
[1768084343073,0.19230876,905.67,904.32,0.68862567]
[1768084343273,0.19230876,905.67,904.33,0.68862567]
[1768084343475,0.19230876,905.67,904.34,0.68862567]
[1768084343678,0.19230876,905.67,904.35,0.68862567]
[1768084343874,0.19230876,905.67,904.36,0.68862567]
[1768084344079,0.19230876,905.67,904.31,2.938]
[1768084344279,0.19230876,905.67,904.32,0.68880926]
[1768084344475,0.19230876,905.67,904.33,0.68880926]
[1768084344680,0.19230876,905.67,904.34,0.68880926]
[1768084344979,0.19230876,905.67,904.35,0.68880926]
[1768084345179,0.19230876,905.67,904.36,0.68880926]
[1768084345378,0.19230876,905.67,904.37,0.68880926]
[1768084345679,0.19230876,905.67,904.31,2.938]
[1768084345877,0.19230876,905.67,904.32,0.68891057]
[1768084346080,0.19230876,905.67,904.33,0.68891057]
[1768084346276,0.19230876,905.67,904.34,0.68891057]
[1768084346481,0.19230876,905.67,904.35,0.68891057]
[1768084346681,0.19230876,905.67,904.36,0.68891057]
[1768084346879,0.19230876,905.67,904.37,0.68891057]
[1768084347078,0.19230876,905.67,904.38,0.68891057]
[1768084347282,0.19230876,905.67,904.31,2.938]
[1768084347582,0.19230876,905.67,904.32,0.69090691]
[1768084347882,0.19230876,905.67,904.33,0.69090691]
[1768084348082,0.19230876,905.67,904.34,0.69090691]
[1768084348283,0.19230876,905.67,904.35,0.69090691]
[1768084348480,0.19230876,905.67,904.36,0.69090691]
[1768084348680,0.19230876,905.67,904.37,0.69090691]
[1768084348885,0.19230876,905.67,904.38,0.69090691]
[1768084349183,0.19230876,905.67,904.39,0.69090691]
[1768084349481,0.19230876,905.67,904.4,0.69090691]
[1768084349680,0.19230876,905.67,904.41,0.69090691]
[1768084349883,0.19230876,905.67,904.31,2.938]
[1768084350087,0.19230876,905.67,904.32,0.6910659]
[1768084350286,0.19230876,905.67,904.33,0.6910659]
[1768084350483,0.19230876,905.67,904.34,0.6910659]
[1768084350784,0.19230876,905.67,904.35,0.6910659]
[1768084350985,0.19230876,905.67,904.36,0.6910659]
[1768084351285,0.19230876,905.67,904.37,0.6910659]
[1768084351487,0.19230876,905.67,904.38,0.6910659]
[1768084351688,0.19230876,905.67,904.39,0.6910659]
[1768084351883,0.19230876,905.67,904.4,0.6910659]
[1768084352187,0.19230876,905.67,904.41,0.6910659]
[1768084352486,0.19230876,905.67,904.42,0.6910659]
[1768084352683,0.19230876,905.67,904.31,2.938]
[1768084352684,0.19230876,905.67,904.43,0.6910659]
[1768084352887,0.19230876,905.67,904.44,0.6910659]
[1768084353082,0.19230876,905.67,904.45,0.6910659]
[1768084353281,0.19230876,905.67,904.46,0.6910659]
[1768084353486,0.19230876,905.67,904.47,0.6910659]
[1768084353783,0.19230876,905.67,904.48,0.6910659]
[1768084353988,0.19230876,905.67,904.49,0.6910659]
[1768084354283,0.19230876,905.67,904.5,0.6910659]
[1768084354488,0.19230876,905.67,904.51,0.6910659]
[1768084354788,0.19230876,905.67,904.52,0.6910659]
[1768084354983,0.19230876,905.67,904.53,0.6910659]
[1768084355184,0.19230876,905.67,904.54,0.6910659]
[1768084355386,0.19230876,905.67,904.55,0.6910659]
[1768084355586,0.19230876,905.67,904.56,0.6910659]
[1768084355786,0.19230876,905.67,904.57,0.6910659]
[1768084355989,0.19230876,905.67,904.58,0.6910659]
[1768084356289,0.19230876,905.67,904.59,0.69110198]
[1768084356491,0.19230876,905.67,904.31,2.938]
[1768084356689,0.19230876,905.67,904.32,0.69110198]
[1768084356890,0.19230876,905.67,904.33,0.69110198]
[1768084357090,0.19230876,905.67,904.34,0.69110198]
[1768084357290,0.19230876,905.67,904.35,0.69110198]
[1768084357488,0.19230876,905.67,904.36,0.69110198]
[1768084357690,0.19230876,905.67,904.37,0.69110198]
[1768084357991,0.19230876,905.67,904.38,0.69110198]
[1768084358191,0.19230876,905.67,904.39,0.69110198]
[1768084358393,0.19230876,905.67,904.4,0.69110198]
[1768084358591,0.19230876,905.67,904.41,0.69110198]
[1768084358793,0.19230876,905.67,904.42,0.69110198]
[1768084358993,0.19230876,905.67,904.43,0.69110198]
[1768084359289,0.19230876,905.67,904.44,0.69110198]
[1768084359488,0.19230876,905.67,904.45,0.69110198]
[1768084359793,0.19230876,905.67,904.46,0.69110198]
[1768084359993,0.19230876,905.67,904.47,0.69110198]
[1768084360192,0.19230876,905.67,904.48,0.69110198]
[1768084360396,0.19230876,905.67,904.49,0.69110198]
[1768084360695,0.19230876,905.67,904.5,0.69110198]
[1768084360891,0.19230876,905.67,904.51,0.69110198]
[1768084361095,0.19230876,905.67,904.52,0.69110198]
[1768084361295,0.19230876,905.67,904.53,0.69110198]
[1768084361492,0.19230876,905.67,904.54,0.69110198]
[1768084361695,0.19230876,905.67,904.55,0.69110198]
[1768084361995,0.19230876,905.67,904.56,0.69110198]
[1768084362196,0.19230876,905.67,904.57,0.69110198]
[1768084362395,0.19230876,905.67,904.58,0.69110198]
[1768084362596,0.19230876,905.67,904.59,0.69110198]
[1768084362896,0.19230876,905.67,904.6,0.69110198]
[1768084363096,0.19230876,905.67,904.31,0.83042505]
[1768084363292,0.19230876,905.67,904.32,1.52162305]
[1768084363492,0.19230876,905.67,904.33,0.691198]
[1768084363691,0.19230876,905.67,904.34,0.691198]
[1768084363891,0.19230876,905.67,904.35,0.691198]
[1768084364096,0.19230876,905.67,904.36,0.691198]
[1768084364294,0.19230876,905.67,904.37,0.691198]
[1768084364496,0.19230876,905.67,904.38,0.691198]
[1768084364696,0.19230876,905.67,904.39,0.691198]
[1768084364896,0.19230876,905.67,904.4,0.691198]
[1768084365193,0.19230876,905.67,904.41,0.691198]
[1768084365395,0.19230876,905.67,904.42,0.691198]
[1768084365593,0.19230876,905.67,904.43,0.691198]
[1768084365792,0.19230876,905.67,904.44,0.691198]
[1768084365993,0.19230876,905.67,904.45,0.691198]
[1768084366295,0.19230876,905.67,904.46,0.691198]
[1768084366494,0.19230876,905.67,904.47,0.691198]
[1768084366693,0.19230876,905.67,904.48,0.691198]
[1768084366892,0.19230876,905.67,904.49,0.691198]
[1768084367092,0.19230876,905.67,904.5,0.691198]
[1768084367291,0.19230876,905.67,904.51,0.691198]
[1768084367496,0.19230876,905.67,904.52,0.691198]
[1768084367792,0.19230876,905.67,904.53,0.691198]
[1768084367996,0.19230876,905.67,904.54,0.691198]
[1768084368292,0.19230876,905.67,904.55,0.691198]
[1768084368491,0.19230876,905.67,904.56,0.691198]
[1768084368694,0.19230876,905.67,904.57,0.691198]
[1768084368999,0.19230876,905.67,904.58,0.691198]
[1768084369297,0.19230876,905.67,904.59,0.691198]
[1768084369494,0.19230876,905.67,904.6,0.691198]
[1768084369793,0.19230876,905.67,904.61,0.691198]
[1768084369997,0.19230876,905.67,904.62,0.691198]
[1768084370295,0.19230876,905.67,904.38,2.947]
[1768084370296,0.19230876,905.67,904.63,0.691198]
[1768084370494,0.19230876,905.67,904.64,0.691198]
[1768084370692,0.19230876,905.67,904.65,0.691198]
[1768084370892,0.19230876,905.67,904.66,0.691198]
[1768084371093,0.19230876,905.67,904.38,2.947]
[1768084371298,0.19230876,905.67,904.39,0.69121745]
[1768084371497,0.19230876,905.67,904.4,0.69121745]
[1768084371697,0.19230876,905.67,904.41,0.69121745]
[1768084371897,0.19230876,905.67,904.42,0.69121745]
[1768084372095,0.19230876,905.67,904.43,0.69121745]
[1768084372294,0.19230876,905.67,904.44,0.69121745]
[1768084372500,0.19230876,905.67,904.45,0.69121745]
[1768084372700,0.19230876,905.67,904.46,0.69121745]
[1768084372900,0.19230876,905.67,904.47,0.69121745]
[1768084373101,0.19230876,905.67,904.48,0.69121745]
[1768084373298,0.19230876,905.67,904.49,0.69121745]
[1768084373503,0.19230876,905.67,904.5,0.69121745]
[1768084373699,0.19230876,905.67,904.51,0.69121745]
[1768084373903,0.19230876,905.67,904.52,0.69121745]
[1768084374203,0.19230876,905.67,904.53,0.69121745]
[1768084374503,0.19230876,905.67,904.54,0.69121745]
[1768084374700,0.19230876,905.67,904.55,0.69121745]
[1768084375000,0.19230876,905.67,904.56,0.69121745]
[1768084375202,0.19230876,905.67,904.57,0.69121745]
[1768084375402,0.19230876,905.67,904.58,0.69121745]
[1768084375599,0.19230876,905.67,904.59,0.69121745]
[1768084375798,0.19230876,905.67,904.6,0.69121745]
[1768084376003,0.19230876,905.67,904.61,0.69121745]
[1768084376200,0.19230876,905.67,904.62,0.69121745]
[1768084376400,0.19230876,905.67,904.63,0.69121745]
[1768084376604,0.19230876,905.67,904.64,0.69121745]
[1768084376804,0.19230876,905.67,904.65,0.69121745]
[1768084377105,0.19230876,905.67,904.66,0.69121745]
[1768084377300,0.19230876,905.67,904.38,2.947]
[1768084377503,0.19230876,905.67,904.39,0.69324405]
[1768084377704,0.19230876,905.67,904.4,0.69324405]
[1768084377905,0.19230876,905.67,904.41,0.69324405]
[1768084378101,0.19230876,905.67,904.42,0.69324405]
[1768084378304,0.19230876,905.67,904.43,0.69324405]
[1768084378501,0.19230876,905.67,904.44,0.69324405]
[1768084378801,0.19230876,905.67,904.45,0.69324405]
[1768084379001,0.19230876,905.67,904.46,0.69324405]
[1768084379205,0.19230876,905.67,904.47,0.69324405]
[1768084379506,0.19230876,905.67,904.48,0.69324405]
[1768084379804,0.19230876,905.67,904.49,0.69324405]
[1768084380002,0.19230876,905.67,904.5,0.69324405]
[1768084380301,0.19230876,905.67,904.51,0.69324405]
[1768084380502,0.19230876,905.67,904.61,0.83042505]
[1768084380803,0.19230876,905.67,904.62,0.69324405]
[1768084381002,0.19230876,905.67,904.63,0.69324405]
[1768084381204,0.19230876,905.67,904.61,0.83042505]
[1768084381205,0.19230876,905.67,904.64,0.69324405]
[1768084381506,0.19230876,905.67,904.65,0.69324405]
[1768084381704,0.19230876,905.67,904.66,0.69324405]
[1768084381907,0.19230876,905.67,904.67,0.69324405]
[1768084382102,0.19230876,905.67,904.68,0.69324405]
[1768084382307,0.19230876,905.67,904.69,0.69324405]
[1768084382504,0.19230876,905.67,904.7,0.69324405]
[1768084382703,0.19230876,905.67,904.71,0.69324405]
[1768084382902,0.19230876,905.67,904.72,0.69324405]
[1768084383105,0.19230876,905.67,904.73,0.69324405]
[1768084383404,0.19230876,905.67,904.74,0.69324405]
[1768084383603,0.19230876,905.67,904.75,0.69324405]
[1768084383804,0.19230876,905.67,904.76,0.69324405]
[1768084384007,0.19230876,905.67,904.77,0.69324405]
[1768084384208,0.19230876,905.67,904.78,0.69324405]
[1768084384408,0.19230876,905.67,904.49,0.83042505]
[1768084384608,0.19230876,905.67,904.5,1.52263232]
[1768084384803,0.19230876,905.67,904.51,0.69220727]
[1768084385006,0.19230876,905.67,904.52,0.69220727]
[1768084385209,0.19230876,905.67,904.53,0.69220727]
[1768084385406,0.19230876,905.67,904.54,0.69220727]
[1768084385606,0.19230876,905.67,904.55,0.69220727]
[1768084385810,0.19230876,905.67,904.56,0.69220727]
[1768084386109,0.19230876,905.67,904.57,0.69220727]
[1768084386308,0.19230876,905.67,904.58,0.69220727]
[1768084386506,0.19230876,905.67,904.59,0.69220727]
[1768084386808,0.19230876,905.67,904.6,0.69220727]
[1768084387008,0.19230876,905.67,904.61,0.69220727]
[1768084387205,0.19230876,905.67,904.62,0.69220727]
[1768084387405,0.19230876,905.67,904.63,0.69220727]
[1768084387607,0.19230876,905.67,904.64,0.69220727]
[1768084387806,0.19230876,905.67,904.65,0.69220727]
[1768084388103,0.19230876,905.67,904.66,0.69220727]
[1768084388304,0.19230876,905.67,904.67,0.69220727]
[1768084388508,0.19230876,905.67,904.68,0.69220727]
[1768084388706,0.19230876,905.67,904.69,0.69220727]
[1768084388908,0.19230876,905.67,904.7,0.69220727]
[1768084389110,0.19230876,905.67,904.71,0.69220727]
[1768084389310,0.19230876,905.67,904.72,0.69220727]
[1768084389509,0.19230876,905.67,904.73,0.69220727]
[1768084389713,0.19230876,905.67,904.74,0.69220727]
[1768084389914,0.19230876,905.67,904.75,0.69220727]
[1768084390208,0.19230876,905.67,904.76,0.69220727]
[1768084390412,0.19230876,905.67,904.77,0.69220727]
[1768084390612,0.19230876,905.67,904.78,0.69220727]
[1768084390812,0.19230876,905.67,904.49,0.83042505]
[1768084391108,0.19230876,905.67,904.5,0.69208202]
[1768084391409,0.19230876,905.67,904.51,0.69208202]
[1768084391609,0.19230876,905.67,904.52,0.69208202]
[1768084391808,0.19230876,905.67,904.53,0.69208202]
[1768084392009,0.19230876,905.67,904.54,0.69208202]
[1768084392213,0.19230876,905.67,904.55,0.69208202]
[1768084392412,0.19230876,905.67,904.56,0.69208202]
[1768084392609,0.19230876,905.67,904.57,0.69208202]
[1768084392812,0.19230876,905.67,904.58,0.69208202]
[1768084393109,0.19230876,905.67,904.59,0.69208202]
[1768084393313,0.19230876,905.67,904.6,0.69208202]
[1768084393513,0.19230876,905.67,904.61,0.69208202]
[1768084393710,0.19230876,905.67,904.62,0.69208202]
[1768084394015,0.19230876,905.67,904.63,0.69208202]
[1768084394212,0.19230876,905.67,904.64,0.69208202]
[1768084394412,0.19230876,905.67,904.65,0.69208202]
[1768084394614,0.19230876,905.67,904.66,0.69208202]
[1768084394813,0.19230876,905.67,904.67,0.69208202]
[1768084395015,0.19230876,905.67,904.68,0.69208202]
[1768084395314,0.19230876,905.67,904.69,0.69208202]
[1768084395514,0.19230876,905.67,904.7,0.69208202]
[1768084395715,0.19230876,905.67,904.71,0.69208202]
[1768084395916,0.19230876,905.67,904.72,0.69208202]
[1768084396115,0.19230876,905.67,904.73,0.69208202]
[1768084396317,0.19230876,905.67,904.74,0.69208202]
[1768084396518,0.19230876,905.67,904.75,0.69208202]
[1768084396720,0.19230876,905.67,904.46,0.83042505]
[1768084396920,0.19230876,905.67,904.47,0.69253066]
[1768084397217,0.19230876,905.67,904.48,0.69253066]
[1768084397421,0.19230876,905.67,904.49,0.69253066]
[1768084397622,0.19230876,905.67,904.5,0.69253066]
[1768084397822,0.19230876,905.67,904.51,0.69253066]
[1768084398019,0.19230876,905.67,904.52,0.69253066]
[1768084398222,0.19230876,905.67,904.53,0.69253066]
[1768084398423,0.19230876,905.67,904.54,0.69253066]
[1768084398718,0.19230876,905.67,904.55,0.69253066]
[1768084399023,0.19230876,905.67,904.56,0.69253066]
[1768084399223,0.19230876,905.67,904.57,0.69253066]
[1768084399424,0.19230876,905.67,904.58,0.69253066]
[1768084399622,0.19230876,905.67,904.59,0.69253066]
[1768084399919,0.19230876,905.67,904.6,0.69253066]
[1768084400124,0.19230876,905.67,904.61,0.69253066]
[1768084400323,0.19230876,905.67,904.62,0.69253066]
[1768084400625,0.19230876,905.67,904.63,0.69253066]
[1768084400824,0.19230876,905.67,904.64,0.69253066]
[1768084401124,0.19230876,905.67,904.65,0.69253066]
[1768084401321,0.19230876,905.67,904.57,2.598]
[1768084401322,0.19230876,905.67,904.66,0.69253066]
[1768084401520,0.19230876,905.67,904.67,0.69253066]
[1768084401725,0.19230876,905.67,904.57,2.598]
[1768084402022,0.19230876,905.67,904.58,0.69274327]
[1768084402226,0.19230876,905.67,904.59,0.69274327]
[1768084402427,0.19230876,905.67,904.6,0.69274327]
[1768084402624,0.19230876,905.67,904.61,0.69274327]
[1768084402829,0.19230876,905.67,904.62,0.69274327]
[1768084403029,0.19230876,905.67,904.63,0.69274327]
[1768084403228,0.19230876,905.67,904.64,0.69274327]
[1768084403426,0.19230876,905.67,904.57,2.598]
[1768084403728,0.19230876,905.67,904.58,0.69280171]
[1768084403926,0.19230876,905.67,904.59,0.69280171]
[1768084404127,0.19230876,905.67,904.6,0.69280171]
[1768084404429,0.19230876,905.67,904.61,0.69280171]
[1768084404628,0.19230876,905.67,904.62,0.69280171]
[1768084404826,0.19230876,905.67,904.63,0.69280171]
[1768084405025,0.19230876,905.67,904.64,0.69280171]
[1768084405228,0.19230876,905.67,904.65,0.69280171]
[1768084405526,0.19230876,905.67,904.57,2.598]
[1768084405731,0.19230876,905.67,904.58,0.69288094]
[1768084406031,0.19230876,905.67,904.59,0.69288094]
[1768084406232,0.19230876,905.67,904.6,0.69288094]
[1768084406428,0.19230876,905.67,904.61,0.69288094]
[1768084406626,0.19230876,905.67,904.62,0.69288094]
[1768084406831,0.19230876,905.67,904.63,0.69288094]
[1768084407132,0.19230876,905.67,904.64,0.69242014]
[1768084407332,0.19230876,905.67,904.57,2.598]
[1768084407533,0.19230876,905.67,904.58,0.69242199]
[1768084407732,0.19230876,905.67,904.59,0.69242199]
[1768084408033,0.19230876,905.67,904.6,0.69242199]
[1768084408329,0.19230876,905.67,904.57,2.598]
[1768084424347,0.19230876,905.67,904.58,0.69179978]
[1768084424646,0.19230876,905.67,904.59,0.69179978]
[1768084424847,0.19230876,905.67,904.6,0.69179978]
[1768084425043,0.19230876,905.67,904.61,0.69179978]
[1768084425347,0.19230876,905.67,904.62,0.69179978]
[1768084425642,0.19230876,905.67,904.57,2.598]
[1768084425643,0.19230876,905.67,904.63,0.69179978]
[1768084425843,0.19230876,905.67,904.64,0.69179978]
[1768084426048,0.19230876,905.67,904.65,0.69179978]
[1768084426245,0.19230876,905.67,904.66,0.69179978]
[1768084426444,0.19230876,905.67,904.67,0.69179978]
[1768084426646,0.19230876,905.67,904.68,0.69179978]
[1768084426847,0.19230876,905.67,904.69,0.69179978]
[1768084427052,0.19230876,905.67,904.7,0.69179978]
[1768084427350,0.19230876,905.67,904.71,0.69179978]
[1768084427547,0.19230876,905.67,904.72,0.69179978]
[1768084427847,0.19230876,905.67,904.73,0.69179978]
[1768084428050,0.19230876,905.67,904.74,0.69179978]
[1768084428250,0.19230876,905.67,904.57,2.598]
[1768084428449,0.19230876,905.67,904.58,0.69201619]
[1768084428649,0.19230876,905.67,904.59,0.69201619]
[1768084428845,0.19230876,905.67,904.6,0.69201619]
[1768084429051,0.19230876,905.67,904.61,0.69201619]
[1768084429247,0.19230876,905.67,904.62,0.69201619]